bitfinex-derivatives/quotes_BNBF0:USTF0_20250221
["timestamp","ask_amount","ask_price","bid_price","bid_amount"]
[1740119522476,1.427,653.4,652.61,2.17600643]
[1740119522777,1.427,653.4,652.62,2.17600643]
[1740119522977,1.427,653.4,652.63,2.17600643]
[1740119523178,1.14842678,653.94,652.64,2.17600643]
[1740119523478,0.30584781,653.92,652.65,2.17600643]
[1740119523672,0.30584781,653.92,652.66,2.17600643]
[1740119523877,0.30584781,653.92,652.67,2.17600643]
[1740119524075,0.30584781,653.92,652.68,2.17600643]
[1740119524273,0.30584781,653.92,652.69,2.17600643]
[1740119524473,0.30584781,653.92,652.7,2.17600643]
[1740119524673,0.30584781,653.92,652.71,2.17600643]
[1740119524874,0.30584781,653.92,652.72,2.17600643]
[1740119525073,0.30584781,653.92,652.65,3.00604484]
[1740119525278,0.30584781,653.92,652.66,2.17611729]
[1740119525473,0.30584781,653.92,652.67,2.17611729]
[1740119525779,1.14842678,653.88,652.68,2.17611729]
[1740119525976,0.30587587,653.86,652.69,2.17611729]
[1740119526176,0.30587587,653.86,652.7,2.17611729]
[1740119526376,0.30587587,653.86,652.71,2.17611729]
[1740119526573,0.30587587,653.86,652.72,2.17611729]
[1740119526778,0.30587587,653.86,652.73,2.17611729]
[1740119526979,0.30587587,653.86,652.74,2.17611729]
[1740119527177,0.30587587,653.86,652.75,2.17611729]
[1740119527372,0.30587587,653.86,652.76,2.17611729]
[1740119527577,0.30587587,653.86,652.75,3.00604484]
[1740119527777,0.30587587,653.86,652.76,2.17680808]
[1740119527979,1.14842678,653.85,652.77,2.17680808]
[1740119528281,0.30588991,653.83,652.78,2.17680808]
[1740119528474,0.30588991,653.83,652.79,2.17680808]
[1740119528676,0.30588991,653.83,652.8,2.17680808]
[1740119528877,0.30588991,653.83,652.65,1.14763846]
[1740119529078,0.30588991,653.83,652.66,2.17718057]
[1740119529379,0.91874658,653.77,652.67,2.17718057]
[1740119529578,0.30592734,653.75,652.68,2.17718057]
[1740119529781,0.30592734,653.75,652.69,2.17718057]
[1740119529982,0.30592734,653.75,652.7,2.17718057]
[1740119530282,0.30592734,653.75,652.71,2.17718057]
[1740119530484,0.30592734,653.75,652.67,3.00755676]
[1740119530784,1.14842678,653.65,652.72,3.00755676]
[1740119530982,0.3059835,653.63,652.72,3.00755676]
[1740119532084,0.3059835,653.63,652.73,3.00755676]
[1740119533286,0.3059835,653.63,652.6,1.14763846]
[1740119533484,0.3059835,653.63,652.61,2.17643575]
[1740119533678,0.3059835,653.63,652.62,2.17643575]
[1740119533883,0.3059835,653.63,652.63,2.17643575]
[1740119534083,0.3059835,653.63,652.64,2.17643575]
[1740119534283,0.3059835,653.63,652.65,2.17643575]
[1740119534483,0.3059835,653.63,652.66,2.17643575]
[1740119534678,0.3059835,653.63,652.67,2.17643575]
[1740119534885,0.3059835,653.63,652.62,3.00643181]
[1740119535181,0.3059835,653.63,652.63,5.18287357]
[1740119535388,0.3059835,653.63,652.64,2.17644176]
[1740119535585,0.3059835,653.63,652.65,2.17644176]
[1740119535782,0.3059835,653.63,652.66,2.17644176]
[1740119535984,0.3059835,653.63,652.67,2.17632416]
[1740119536187,0.3059835,653.63,652.68,2.17632416]
[1740119536486,0.3059835,653.63,652.69,2.17632416]
[1740119536686,0.3059835,653.63,652.7,2.17632416]
[1740119536886,0.3059835,653.63,652.7,3.00643181]
[1740119537888,0.3059835,653.63,652.71,3.00643181]
[1740119538889,0.3059835,653.63,652.72,2.1759963]
[1740119539092,0.3059835,653.63,652.71,3.00643181]
[1740119539392,0.3059835,653.63,652.73,3.00643181]
[1740119540590,0.3059835,653.63,652.74,3.00643181]
[1740119541695,0.3059835,653.63,652.45,1.14763846]
[1740119541896,0.3059835,653.63,652.46,2.17580821]
[1740119542090,0.3059835,653.63,652.47,5.18135364]
[1740119542296,0.3059835,653.63,652.48,2.17580821]
[1740119542597,0.3059835,653.63,652.49,2.17580821]
[1740119542793,0.3059835,653.63,652.5,2.17580821]
[1740119542994,0.3059835,653.63,652.51,2.17580821]
[1740119543296,0.3059835,653.63,652.52,2.17580821]
[1740119543490,0.3059835,653.63,652.53,2.17580821]
[1740119543692,0.3059835,653.63,652.54,5.18135364]
[1740119543890,0.3059835,653.63,652.55,2.17580821]
[1740119544094,0.3059835,653.63,652.54,3.00554543]
[1740119544291,0.3059835,653.63,652.55,2.17541109]
[1740119544494,0.3059835,653.63,652.54,3.00554543]
[1740119545192,0.3059835,653.63,652.38,1.14763846]
[1740119545696,0.3059835,653.63,652.39,3.00472723]
[1740119547193,0.3059835,653.63,652.37,1.14763846]
[1740119547700,0.3059835,653.63,652.38,5.17896717]
[1740119547899,0.3059835,653.63,652.38,3.00416713]
[1740119548800,0.3059835,653.63,652.37,1.14763846]
[1740119549301,0.3059835,653.63,645.59,9.19266079]
[1740119549302,0.3059835,653.63,652.31,1.14763846]
[1740119549502,0.3059835,653.63,652.32,2.17449996]
[1740119549702,0.3059835,653.63,652.33,2.17449996]
[1740119549998,0.3059835,653.63,652.34,2.17449996]
[1740119550196,0.3059835,653.63,652.35,2.17449996]
[1740119550397,0.3059835,653.63,652.33,3.00368124]
[1740119550601,0.3059835,653.63,652.34,2.17435304]
[1740119550801,0.3059835,653.63,652.35,2.17435304]
[1740119550998,0.3059835,653.63,652.33,3.00368124]
[1740119551199,0.3059835,653.63,652.34,2.17435334]
[1740119551397,0.3059835,653.63,652.31,1.14763846]
[1740119551998,0.3059835,653.63,652.3,1.14763846]
[1740119554904,0.3059835,653.63,652.2,1.14763846]
[1740119555298,0.3059835,653.63,652.21,3.00222725]
[1740119555704,0.3059835,653.63,652.22,2.17322576]
[1740119555899,0.3059835,653.63,652.21,3.00222725]
[1740119556103,0.3059835,653.63,652.22,2.1732429]
[1740119556304,0.3059835,653.63,652.21,3.00222725]
[1740119556607,0.3059835,653.63,652.22,2.17309042]
[1740119556805,0.3059835,653.63,652.21,3.00222725]
[1740119557005,0.3059835,653.63,652.22,2.17307116]
[1740119557305,0.3059835,653.63,652.23,3.00222725]
[1740119557805,0.3059835,653.63,652.26,1.14763846]
[1740119558604,0.3059835,653.63,652.27,3.00222725]
[1740119559500,0.3059835,653.63,652.28,2.17278964]
[1740119559701,0.3059835,653.63,652.29,2.17278964]
[1740119559902,0.3059835,653.63,652.3,2.17278964]
[1740119560099,0.3059835,653.63,652.31,2.17278964]
[1740119560302,0.3059835,653.63,652.32,2.17278964]
[1740119560505,0.3059835,653.63,652.33,2.17278964]
[1740119560701,0.3059835,653.63,652.34,2.17278964]
[1740119560901,0.3059835,653.63,652.35,2.17278964]
[1740119561105,0.3059835,653.63,652.36,2.17278964]
[1740119561303,0.3059835,653.63,652.37,2.17278964]
[1740119561503,0.3059835,653.63,652.38,2.17278964]
[1740119561810,0.3059835,653.63,652.39,2.17278964]
[1740119562109,0.3059835,653.63,652.4,2.17278964]
[1740119562311,0.3059835,653.63,652.41,2.17278964]
[1740119562511,0.3059835,653.63,652.42,2.17278964]
[1740119562810,0.3059835,653.63,652.43,2.17278964]
[1740119563011,0.3059835,653.63,652.44,2.17278964]
[1740119563214,0.3059835,653.63,652.45,2.17278964]
[1740119563411,0.3059835,653.63,652.46,2.17278964]
[1740119563611,0.3059835,653.63,652.47,2.17278964]
[1740119563805,0.3059835,653.63,652.48,2.17278964]
[1740119564004,0.3059835,653.63,652.49,2.17278964]
[1740119564209,0.3059835,653.63,652.5,2.17278964]
[1740119564407,0.3059835,653.63,652.51,2.17278964]
[1740119564607,0.3059835,653.63,652.52,2.17278964]
[1740119564912,0.3059835,653.63,652.53,2.17278964]
[1740119565112,0.3059835,653.63,652.54,2.17278964]
[1740119565310,0.3059835,653.63,652.55,2.17278964]
[1740119565507,0.3059835,653.63,652.56,2.17278964]
[1740119565707,0.3059835,653.63,652.57,2.17278964]
[1740119566012,0.3059835,653.63,652.58,2.17278964]
[1740119566213,0.3059835,653.63,652.59,2.17278964]
[1740119566409,0.3059835,653.63,652.6,2.17278964]
[1740119566615,0.3059835,653.63,652.61,2.17278964]
[1740119566813,0.3059835,653.63,652.62,2.17278964]
[1740119567012,0.3059835,653.63,652.63,2.17278964]
[1740119567208,0.3059835,653.63,652.64,2.17278964]
[1740119567409,0.3059835,653.63,652.65,2.17278964]
[1740119567610,0.3059835,653.63,652.66,2.17278964]
[1740119567812,0.3059835,653.63,652.67,2.17278964]
[1740119568211,0.3059835,653.63,652.68,2.17278964]
[1740119568416,0.3059835,653.63,652.64,3.00222725]
[1740119568417,0.3059835,653.63,652.69,2.17278964]
[1740119568716,0.3059835,653.63,652.7,2.17278964]
[1740119568913,0.3059835,653.63,652.71,2.17278964]
[1740119569116,0.3059835,653.63,652.64,3.00222725]
[1740119569315,0.3059835,653.63,652.61,1.14763846]
[1740119573019,0.3059835,653.63,652.47,1.14763846]
[1740119575821,0.3059835,653.63,652.19,1.14763846]
[1740119577721,0.3059835,653.63,652.2,2.17276876]
[1740119577921,0.3059835,653.63,652.21,2.17276876]
[1740119578221,0.3059835,653.63,652.22,2.17276876]
[1740119578420,0.3059835,653.63,652.23,2.17276876]
[1740119578617,0.3059835,653.63,652.24,2.17276876]
[1740119578823,0.3059835,653.63,652.25,2.17276876]
[1740119579018,0.3059835,653.63,652.26,2.17276876]
[1740119579224,0.3059835,653.63,652.27,2.17276876]
[1740119579423,0.3059835,653.63,652.28,2.17276876]
[1740119579624,0.3059835,653.63,652.29,2.17276876]
[1740119579921,0.3059835,653.63,652.3,2.17276876]
[1740119580124,0.3059835,653.63,652.31,2.17276876]
[1740119580326,0.3059835,653.63,652.32,2.17276876]
[1740119580626,0.3059835,653.63,652.33,2.17276876]
[1740119580927,0.3059835,653.63,652.51,1.14763846]
[1740119581128,0.3059835,653.63,652.52,2.17276876]
[1740119581325,0.3059835,653.63,652.53,2.17276876]
[1740119581521,0.3059835,653.63,652.54,2.17276876]
[1740119581726,0.3059835,653.63,652.55,2.17276876]
[1740119581927,0.3059835,653.63,652.56,2.17276876]
[1740119582226,0.3059835,653.63,652.57,2.17276876]
[1740119582427,0.3059835,653.63,652.52,3.00144797]
[1740119582428,0.3059835,653.63,652.58,2.17276876]
[1740119582627,0.3059835,653.63,652.59,2.17276876]
[1740119582829,0.3059835,653.63,652.6,2.17276876]
[1740119583026,0.3059835,653.63,652.61,2.17276876]
[1740119583229,0.3059835,653.63,652.62,2.17276876]
[1740119583425,0.3059835,653.63,652.63,2.17276876]
[1740119583627,0.3059835,653.63,652.64,2.17276876]
[1740119583826,0.3059835,653.63,652.65,2.17276876]
[1740119584029,0.3059835,653.63,652.66,2.17276876]
[1740119584327,0.3059835,653.63,652.67,2.17276876]
[1740119584529,0.3059835,653.63,652.68,2.17276876]
[1740119584727,0.3059835,653.63,652.69,2.17276876]
[1740119584927,0.3059835,653.63,652.7,2.17276876]
[1740119585128,0.3059835,653.63,652.71,2.17276876]
[1740119585324,0.3059835,653.63,652.72,2.17276876]
[1740119585523,0.3059835,653.63,652.73,2.17276876]
[1740119585727,0.3059835,653.63,652.74,2.17276876]
[1740119585927,0.3059835,653.63,652.75,2.17276876]
[1740119586128,0.3059835,653.63,652.7,3.00144797]
[1740119586326,0.3059835,653.63,652.71,2.17307772]
[1740119586527,0.3059835,653.63,652.72,2.17307772]
[1740119586722,0.3059835,653.63,652.73,2.17307772]
[1740119586922,0.3059835,653.63,652.72,3.00144797]
[1740119587227,1.222,653.62,652.72,3.00144797]
[1740119587428,0.30599287,653.61,652.72,3.00144797]
[1740119588130,0.30599287,653.61,652.52,1.14763846]
[1740119589631,0.30599287,653.61,652.32,1.14763846]
[1740119592327,0.30599287,653.61,652.34,1.14763846]
[1740119595632,0.30599287,653.61,652.36,1.14763846]
[1740119597935,0.30599287,653.61,652.37,2.16561869]
[1740119598134,0.32135621,653.62,652.38,2.16561869]
[1740119598328,0.32135621,653.62,652.39,2.16561869]
[1740119598529,0.32135621,653.62,652.4,2.16561869]
[1740119598729,0.32135621,653.62,652.41,2.16561869]
[1740119598933,0.32135621,653.62,652.51,1.14763846]
[1740119600135,0.32135621,653.62,652.52,3.29529941]
[1740119600335,0.32135621,653.62,652.53,0.30649931]
[1740119601335,0.32135621,653.62,652.54,2.9887954]
[1740119601531,0.32135621,653.62,652.55,0.30648992]
[1740119602138,0.32135621,653.62,652.84,1.14763846]
[1740119602738,0.32135621,653.62,652.85,2.9887954]
[1740119604538,0.32135621,653.62,652.86,2.9887954]
[1740119605237,1.14842678,655.12,652.86,2.9887954]
[1740119605447,0.30533884,655.01,652.86,2.9887954]
[1740119605645,1.11698853,655.0,652.74,1.14763846]
[1740119605845,0.30539479,654.89,652.74,1.14763846]
[1740119606048,1.11698853,654.88,652.75,2.96808797]
[1740119606344,0.3054461,654.78,652.75,2.96808797]
[1740119606544,1.11698853,654.77,652.75,2.96808797]
[1740119606744,0.30549742,654.67,652.75,2.96808797]
[1740119606946,1.11698853,654.66,652.75,2.96808797]
[1740119607145,0.30551142,654.64,652.75,2.96808797]
[1740119607347,1.11698853,654.63,652.76,2.96808797]
[1740119607646,0.30552542,654.61,652.76,2.96808797]
[1740119609442,1.11587864,654.6,652.77,2.96808797]
[1740119609659,0.30553942,654.58,652.77,2.96808797]
[1740119611050,1.1157402,654.57,652.67,1.14763846]
[1740119611246,0.30555343,654.55,652.68,2.96530639]
[1740119611551,1.11565648,654.54,652.68,2.96530639]
[1740119611850,1.11565648,654.53,652.68,2.96530639]
[1740119612046,1.11565648,654.52,652.68,2.96530639]
[1740119612251,1.42122858,654.51,652.68,2.96530639]
[1740119612452,0.30558144,654.49,652.68,2.96530639]
[1740119612652,1.11576034,654.48,652.67,1.14763846]
[1740119612851,0.30559545,654.46,652.67,1.14763846]
[1740119613753,0.30559545,654.46,652.55,1.45412838]
[1740119613953,0.30559545,654.46,652.56,2.96575038]
[1740119615653,0.30559545,654.46,652.57,2.96575038]
[1740119617249,0.30559545,654.46,652.58,2.96575038]
[1740119618255,1.11598833,654.45,652.58,2.96575038]
[1740119618456,0.30560946,654.43,652.58,2.96575038]
[1740119618857,0.30560946,654.43,652.55,0.30648992]
[1740119621558,0.30560946,654.43,652.56,2.96731523]
[1740119622359,0.30560946,654.43,652.6,1.14763846]
[1740119623558,0.30560946,654.43,652.61,2.96731523]
[1740119624957,0.30560946,654.43,652.62,2.96731523]
[1740119625164,0.30560946,654.43,652.69,1.14763846]
[1740119627567,0.30560946,654.43,652.71,1.14763846]
[1740119629362,0.30560946,654.43,652.72,2.96872069]
[1740119629664,0.30560946,654.43,652.86,1.14763846]
[1740119630667,0.30560946,654.43,652.87,2.96872069]
[1740119632466,0.30560946,654.43,652.86,1.14763846]
[1740119633170,0.30560946,654.43,653.0,1.14763846]
[1740119633668,1.368,654.42,653.0,1.14763846]
[1740119633868,0.30562347,654.4,653.0,1.14763846]
[1740119636365,0.30562347,654.4,652.99,1.14763846]
[1740119639772,0.30562347,654.4,653.04,1.14763846]
[1740119643470,0.30562347,654.4,652.55,0.30648992]
[1740119643471,0.30562347,654.4,653.07,1.14763846]
[1740119645782,0.30562347,654.4,653.13,1.14763846]
[1740119648482,0.30562347,654.4,653.14,2.97562905]
[1740119650179,0.30562347,654.4,653.12,1.14763846]
[1740119651184,0.30562347,654.4,653.13,2.97744942]
[1740119651983,1.12211558,654.39,653.12,1.14763846]
[1740119652185,1.12211558,654.38,653.12,1.14763846]
[1740119652383,1.12211558,654.37,653.08,1.14763846]
[1740119652584,0.30564682,654.35,653.08,1.14763846]
[1740119655286,0.30564682,654.35,652.74,1.14763846]
[1740119656588,0.30564682,654.35,652.75,2.98879283]
[1740119658387,0.30564682,654.35,652.76,2.98879283]
[1740119658589,0.30564682,654.35,652.88,1.14763846]
[1740119659488,1.12573429,654.34,652.88,1.14763846]
[1740119659684,0.30566083,654.32,652.88,1.14763846]
[1740119660885,0.30566083,654.32,652.89,2.98879283]
[1740119661283,0.30566083,654.32,652.9,1.14763846]
[1740119662484,0.30566083,654.32,652.91,2.98879283]
[1740119663992,0.30566083,654.32,652.95,1.14763846]
[1740119665387,0.30566083,654.32,652.96,2.98879283]
[1740119666492,0.30566083,654.32,652.95,1.14763846]
[1740119666493,0.30566083,654.32,652.97,2.98879283]
[1740119666995,0.30566083,654.32,652.99,1.14763846]
[1740119667994,0.30566083,654.32,653.0,2.98879283]
[1740119668893,0.30566083,654.32,653.01,2.98879283]
[1740119669692,0.30566083,654.32,653.01,4.13643129]
[1740119670191,0.30566083,654.32,653.02,2.98879283]
[1740119670800,1.12621036,654.31,653.02,2.98879283]
[1740119671103,0.30567485,654.29,653.02,2.98879283]
[1740119671800,0.30567485,654.29,653.03,2.98879283]
[1740119672200,0.30567485,654.29,653.04,1.14763846]
[1740119672898,1.12625599,654.28,653.05,2.98879283]
[1740119673103,0.30568886,654.26,653.05,2.98879283]
[1740119674201,0.30568886,654.26,653.04,1.14763846]
[1740119674897,0.30568886,654.26,652.97,1.14763846]
[1740119675605,0.30568886,654.26,652.98,2.99226928]
[1740119677005,0.30568886,654.26,652.99,2.99226928]
[1740119677205,0.30568886,654.26,652.99,4.13990774]
[1740119677405,1.12648221,654.25,652.99,4.13990774]
[1740119677606,0.30570288,654.23,652.99,4.13990774]
[1740119678201,0.30570288,654.23,652.99,1.14763846]
[1740119679909,0.30570288,654.23,652.8,1.14763846]
[1740119680608,0.30570288,654.23,652.81,2.99312413]
[1740119681706,0.30570288,654.23,652.82,2.99312413]
[1740119683108,0.30570288,654.23,652.93,1.14763846]
[1740119684708,0.30570288,654.23,652.94,2.99312413]
[1740119685110,0.30570288,654.23,652.98,1.14763846]
[1740119686210,1.01,654.22,652.98,1.14763846]
[1740119686505,0.30571223,654.21,652.98,1.14763846]
[1740119687711,0.30571223,654.21,653.01,1.14763846]
[1740119690210,0.30571223,654.21,653.02,1.14763846]
[1740119693414,0.30571223,654.21,653.03,2.99184725]
[1740119694413,0.30571223,654.21,653.04,2.99184725]
[1740119696014,0.30571223,654.21,653.05,2.99184725]
[1740119697008,0.30571223,654.21,653.08,1.14763846]
[1740119698316,0.30571223,654.21,653.09,2.98987378]
[1740119700419,0.30571223,654.21,653.09,4.13751224]
[1740119700611,0.30571223,654.21,653.09,1.14763846]
[1740119701913,0.30571223,654.21,653.1,2.98902746]
[1740119703415,0.30571223,654.21,653.11,2.98902746]
[1740119705016,0.30571223,654.21,653.12,2.98902746]
[1740119706422,0.30571223,654.21,653.13,2.98902746]
[1740119708023,0.30571223,654.21,653.14,2.98902746]
[1740119708723,0.30571223,654.21,653.18,1.14763846]
[1740119708921,0.30571223,654.21,653.19,2.98902746]
[1740119710021,0.30571223,654.21,653.2,2.98902746]
[1740119710726,1.276,654.2,653.2,2.98902746]
[1740119710926,1.5817169,654.2,653.2,2.98902746]
[1740119711425,1.5817169,654.2,653.18,1.14763846]
[1740119711919,1.5817169,654.2,653.19,2.98677907]
[1740119712827,1.5817169,654.2,653.2,2.98677907]
[1740119714426,1.5817169,654.2,653.18,1.14763846]
[1740119715321,1.5817169,654.2,653.11,1.14763846]
[1740119716628,1.5817169,654.2,653.12,2.98703866]
[1740119718123,1.5817169,654.2,653.12,4.13467712]
[1740119718328,1.5817169,654.2,653.12,1.14763846]
[1740119720932,1.5817169,654.2,653.11,1.14763846]
[1740119723228,1.5817169,654.2,652.36,2.3430952]
[1740119723229,1.5817169,654.2,653.16,1.14763846]
[1740119723530,0.30572157,654.19,653.16,1.14763846]
[1740119726028,0.30572157,654.19,653.22,1.14763846]
[1740119728030,0.30572157,654.19,653.23,2.98862961]
[1740119728231,0.30572157,654.19,653.26,1.14763846]
[1740119731438,0.30572157,654.19,653.27,2.98917582]
[1740119731739,0.30572157,654.19,653.35,1.14763846]
[1740119734539,0.30572157,654.19,653.39,1.14763846]
[1740119737734,0.30572157,654.19,653.18,1.14763846]
[1740119739841,0.30572157,654.19,653.12,1.14763846]
[1740119741445,1.68872157,654.19,653.12,1.14763846]
[1740119743247,1.68872157,654.19,653.11,1.14763846]
[1740119744849,1.68872157,654.19,653.12,2.9920334]
[1740119746150,1.68872157,654.19,653.13,2.9920334]
[1740119747154,1.68872157,654.19,653.32,1.14763846]
[1740119750959,1.68872157,654.19,653.25,1.14763846]
[1740119753862,1.68872157,654.19,653.26,2.99422746]
[1740119755663,1.68872157,654.19,653.27,2.99422746]
[1740119756659,1.68872157,654.19,653.28,1.14763846]
[1740119757458,1.68872157,654.19,653.29,2.99422746]
[1740119758562,1.68872157,654.19,653.3,2.99422746]
[1740119759860,1.68872157,654.19,653.39,1.14763846]
[1740119760364,1.68872157,654.19,653.4,2.99422746]
[1740119761965,1.68872157,654.19,653.41,2.99422746]
[1740119763965,1.68872157,654.19,653.37,1.14763846]
[1740119763966,1.68872157,654.19,653.42,2.99422746]
[1740119765467,1.68872157,654.19,653.43,2.99422746]
[1740119767063,1.68872157,654.19,653.41,1.14763846]
[1740119768472,1.68872157,654.19,653.42,2.99249443]
[1740119769469,0.30572157,654.19,653.42,2.99249443]
[1740119769973,0.30572157,654.19,653.43,2.99249443]
[1740119771066,0.30572157,654.19,653.44,2.99249443]
[1740119771669,0.30572157,654.19,653.46,1.14763846]
[1740119772373,0.30572157,654.19,653.47,2.99249443]
[1740119773371,0.30572157,654.19,653.46,1.14763846]
[1740119777780,0.30572157,654.19,653.43,1.14763846]
[1740119780679,0.30572157,654.19,653.32,1.14763846]
[1740119782083,1.76272157,654.19,653.32,1.14763846]
[1740119784485,1.76272157,654.19,653.3,1.14763846]
[1740119788384,1.76272157,654.19,653.34,1.14763846]
[1740119788385,1.457,654.19,653.34,1.14763846]
[1740119791286,1.457,654.19,652.73,1.37716616]
[1740119791287,1.457,654.19,653.11,1.14763846]
[1740119791588,1.457,654.19,653.12,0.30622243]
[1740119800491,1.457,654.19,653.22,1.14763846]
[1740119802693,1.457,654.19,653.38,1.14763846]
[1740119803191,1.14842678,655.39,653.38,1.14763846]
[1740119803387,0.30520838,655.29,653.38,1.14763846]
[1740119803591,1.11371197,655.28,653.38,1.14763846]
[1740119803792,0.30522235,655.26,653.39,2.97731236]
[1740119803987,1.11371197,655.25,653.39,2.97731236]
[1740119804187,0.30523632,655.23,653.39,2.97731236]
[1740119804393,1.11371197,655.22,653.39,2.97731236]
[1740119804593,0.3052503,655.2,653.39,2.97731236]
[1740119804793,1.11371197,655.19,653.4,2.97731236]
[1740119805094,0.30526428,655.17,653.4,2.97731236]
[1740119805294,1.11371197,655.16,653.4,2.97731236]
[1740119805490,0.30527826,655.14,653.4,2.97731236]
[1740119805688,1.11371197,655.13,653.4,2.97731236]
[1740119805888,0.30529224,655.11,653.51,1.14763846]
[1740119806093,1.11371197,655.1,653.51,1.14763846]
[1740119806292,0.30530622,655.08,653.51,1.14763846]
[1740119806489,1.11371197,655.07,653.51,1.14763846]
[1740119806696,0.3053202,655.05,653.51,1.14763846]
[1740119807000,1.11332493,655.04,653.51,1.14763846]
[1740119807196,0.30533418,655.02,653.51,1.14763846]
[1740119807398,1.11334753,655.01,653.52,2.97731236]
[1740119807596,0.30534817,654.99,653.52,2.97731236]
[1740119807897,1.11333067,654.98,653.52,2.97731236]
[1740119808196,0.30536215,654.96,653.52,2.97731236]
[1740119808597,0.30536215,654.96,653.51,1.14763846]
[1740119808991,0.30536215,654.96,653.45,1.14763846]
[1740119809597,0.30536215,654.96,653.46,2.9771904]
[1740119810499,1.11337911,654.95,653.47,2.9771904]
[1740119810700,1.11337911,654.94,653.47,2.9771904]
[1740119810998,1.11337911,654.93,653.47,2.9771904]
[1740119811194,0.30538547,654.91,653.47,2.9771904]
[1740119811597,0.30538547,654.91,653.48,2.9771904]
[1740119812796,1.503,654.9,653.48,2.9771904]
[1740119813197,1.503,654.9,653.49,2.9771904]
[1740119813698,0.30539946,654.88,653.49,2.9771904]
[1740119814097,1.11351219,654.87,653.49,2.9771904]
[1740119814297,0.30541345,654.85,653.36,1.14763846]
[1740119815893,1.11364059,654.84,653.36,1.14763846]
[1740119816093,0.30542744,654.82,653.36,1.14763846]
[1740119816295,1.11364059,654.81,653.36,1.14763846]
[1740119816799,0.30544143,654.79,653.36,1.14763846]
[1740119817195,1.11389927,654.78,653.36,1.14763846]
[1740119817497,0.30545543,654.76,653.15,1.14763846]
[1740119817696,1.11389927,654.75,653.15,1.14763846]
[1740119817901,0.30546943,654.73,653.15,1.14763846]
[1740119819501,0.30546943,654.73,653.12,0.30622243]
[1740119826912,0.30546943,654.73,653.13,2.98177754]
[1740119828114,0.30546943,654.73,653.12,0.30622243]
[1740119828115,0.30546943,654.73,653.14,2.98177754]
[1740119829619,0.30546943,654.73,653.15,2.98177754]
[1740119829915,0.30546943,654.73,653.24,1.14763846]
[1740119830319,1.1148071,654.72,653.24,1.14763846]
[1740119830519,0.30548342,654.7,653.24,1.14763846]
[1740119831414,0.30548342,654.7,653.25,2.98177754]
[1740119832821,0.30548342,654.7,653.26,2.98177754]
[1740119833417,0.30548342,654.7,653.26,4.129416]
[1740119833722,1.11519762,654.69,653.26,4.129416]
[1740119833920,0.30549742,654.67,653.26,4.129416]
[1740119834121,0.30549742,654.67,653.27,2.98177754]
[1740119835321,0.30549742,654.67,653.28,2.98177754]
[1740119836725,1.1154362,654.66,653.28,2.98177754]
[1740119836926,1.1154362,654.65,653.28,2.98177754]
[1740119837128,1.1154362,654.64,653.23,1.14763846]
[1740119837327,1.1154362,654.63,653.23,1.14763846]
[1740119837528,0.30552542,654.61,653.23,1.14763846]
[1740119837724,1.1154362,654.6,653.23,1.14763846]
[1740119837924,0.30553942,654.58,653.23,1.14763846]
[1740119838125,1.11539819,654.57,653.23,1.14763846]
[1740119838324,0.30555343,654.55,653.23,1.14763846]
[1740119840832,0.30555343,654.55,653.11,1.14763846]
[1740119841134,0.30555343,654.55,653.12,2.98421617]
[1740119842425,0.30555343,654.55,653.11,1.14763846]
[1740119843432,0.30555343,654.55,653.02,1.14763846]
[1740119846232,0.30555343,654.55,652.91,1.14763846]
[1740119846929,0.30555343,654.55,652.92,2.98053138]
[1740119848128,0.30555343,654.55,652.93,2.98053138]
[1740119850033,0.30555343,654.55,652.92,1.14763846]
[1740119851130,0.30555343,654.55,652.93,2.97788469]
[1740119852335,0.30555343,654.55,653.07,1.14763846]
[1740119854036,0.30555343,654.55,653.08,2.97814828]
[1740119855330,0.30555343,654.55,653.15,1.14763846]
[1740119858039,1.446,654.54,653.15,1.14763846]
[1740119858339,0.30556743,654.52,653.16,2.97911079]
[1740119860040,0.30556743,654.52,653.17,2.97911079]
[1740119860740,0.30556743,654.52,653.29,1.14763846]
[1740119861137,0.30556743,654.52,653.3,2.97911079]
[1740119862639,0.30556743,654.52,653.31,2.97911079]
[1740119862847,0.30556743,654.52,653.32,1.14763846]
[1740119864443,0.30556743,654.52,653.33,2.97911079]
[1740119865644,0.30556743,654.52,653.34,2.97911079]
[1740119866444,0.30556743,654.52,653.35,2.97911079]
[1740119867545,0.30556743,654.52,653.37,1.14763846]
[1740119869246,0.30556743,654.52,653.38,2.97911079]
[1740119870442,0.30556743,654.52,653.39,2.97911079]
[1740119872249,0.30556743,654.52,653.36,1.14763846]
[1740119872948,0.30556743,654.52,653.37,2.98607938]
[1740119874850,0.30556743,654.52,653.31,1.14763846]
[1740119875448,0.30556743,654.52,653.32,2.98725839]
[1740119877248,0.30556743,654.52,653.33,2.98725839]
[1740119878853,0.30556743,654.52,653.34,2.98725839]
[1740119880155,0.30556743,654.52,653.33,1.14763846]
[1740119880156,0.30556743,654.52,653.35,2.98725839]
[1740119881957,0.30556743,654.52,653.36,2.98725839]
[1740119882357,0.30556743,654.52,653.4,1.14763846]
[1740119883456,0.30556743,654.52,653.41,2.98725839]
[1740119884362,0.30556743,654.52,653.42,2.98725839]
[1740119886261,0.30556743,654.52,653.43,2.98725839]
[1740119886864,0.30556743,654.52,653.44,1.14763846]